bitfinex/quotes_SOLUSD_20250210
["timestamp","ask_amount","ask_price","bid_price","bid_amount"]
[1739201445585,0.063,203.25,203.2,23.08906558]
[1739201445885,0.063,203.25,203.24,22.72081398]
[1739201446974,0.063,203.25,203.22,22.72081398]
[1739201447172,0.063,203.25,203.24,20.0]
[1739201447367,1.063,203.25,203.21,22.72081398]
[1739201447569,1.063,203.25,203.22,22.72081398]
[1739201447875,1.563,203.25,203.22,22.72081398]
[1739201448784,1.063,203.25,203.23,0.18342536]
[1739201449254,1.063,203.25,203.23,22.90423934]
[1739201449983,1.063,203.25,203.24,22.72081398]
[1739201450147,1.063,203.25,203.23,22.90423934]
[1739201450354,1.063,203.25,203.23,0.18342536]
[1739201450552,0.063,203.28,203.24,42.72081398]
[1739201450771,1.063,203.28,203.26,22.72081398]
[1739201450961,0.063,203.28,203.26,22.72081398]
[1739201451356,1.0,203.27,203.25,22.72081398]
[1739201451882,0.063,203.28,203.26,22.72081398]
[1739201452068,0.063,203.28,203.27,23.08865406]
[1739201452557,0.063,203.28,203.27,22.72081398]
[1739201457186,0.063,203.28,203.26,22.72081398]
[1739201457358,1.0,203.27,203.25,22.72081398]
[1739201457560,0.5,203.26,203.24,22.72081398]
[1739201457769,1.0,203.25,203.24,22.72081398]
[1739201458078,0.44832003,203.24,203.23,0.18342536]
[1739201458468,1.0,203.25,203.23,22.90423934]
[1739201458663,0.44832003,203.26,203.23,22.90423934]
[1739201458872,1.0,203.27,203.25,22.72081398]
[1739201459678,1.0,203.27,203.23,14.13369206]
[1739201459870,1.44832003,203.24,203.23,0.18342536]
[1739201460063,1.44832003,203.21,203.2,0.03]
[1739201460465,0.44832003,203.21,203.2,0.03]
[1739201460671,3.04962003,203.23,203.2,0.03]
[1739201460886,2.04962003,203.23,203.22,13.9502667]
[1739201461060,1.0,203.23,203.22,13.9502667]
[1739201461384,386.0197333,203.2,203.17,1.23430274]
[1739201461581,386.0197333,203.2,203.16,20.0]
[1739201462464,386.0197333,203.2,203.19,13.9502667]
[1739201462881,1.0,203.19,203.17,13.9502667]
[1739201463085,0.44832003,203.18,203.17,13.9502667]
[1739201463665,1.0,203.19,203.17,13.9502667]
[1739201463870,1.0,203.19,203.18,13.9502667]
[1739201464066,386.46805333,203.2,203.18,13.9502667]
[1739201464283,386.46805333,203.2,203.19,13.9502667]
[1739201464465,386.46805333,203.2,203.17,13.9802667]
[1739201464658,1.44832003,203.18,203.17,0.03]
[1739201465875,23.31878673,203.18,203.17,0.03]
[1739201466072,1.44832003,203.12,203.11,0.07467452]
[1739201466469,15.39858673,203.12,203.11,0.07467452]
[1739201467208,0.44832003,203.07,203.06,0.03]
[1739201467782,1.44832003,203.07,203.06,0.03]
[1739201470187,1.34832003,203.07,203.06,0.03]
[1739201470884,1.34832003,203.12,203.06,28.30057249]
[1739201471067,1.34832003,203.12,203.11,13.9502667]
[1739201471271,1.0,203.14,203.11,13.9502667]
[1739201471469,1.0,203.14,203.13,13.9502667]
[1739201472589,1.34832003,203.17,203.13,13.9502667]
[1739201472786,1.34832003,203.19,203.16,13.9502667]
[1739201472993,386.0197333,203.2,203.18,13.9502667]
[1739201473183,386.0197333,203.2,203.19,13.9502667]
[1739201474080,386.36805333,203.2,203.18,13.9502667]
[1739201474688,386.36805333,203.2,203.19,13.9502667]
[1739201474889,386.0197333,203.2,203.19,13.9502667]
[1739201476472,386.36805333,203.2,203.19,13.9502667]
[1739201476677,386.36805333,203.2,203.18,13.9502667]
[1739201476982,386.36805333,203.2,203.19,13.9502667]
[1739201477388,386.36805333,203.2,203.18,13.9502667]
[1739201477695,386.36805333,203.2,203.19,13.9502667]
[1739201477891,386.0197333,203.2,203.19,13.9502667]
[1739201478974,386.0197333,203.2,203.15,0.039486]
[1739201479184,376.98064231,203.2,203.19,13.9502667]
[1739201479384,361.10189818,203.2,203.19,13.9502667]
[1739201479602,319.18624369,203.2,203.19,13.98974493]
[1739201479787,282.11474054,203.2,203.19,13.98974493]
[1739201480098,279.13099922,203.2,203.19,13.98974493]
[1739201480306,270.59999922,203.2,203.19,13.98974493]
[1739201480476,264.35999922,203.2,203.19,13.98974493]
[1739201480672,257.08599922,203.2,203.19,15.24164935]
[1739201481196,257.08599922,203.2,203.19,13.98974493]
[1739201481497,257.08599922,203.2,203.19,13.9502667]
[1739201482402,251.63217232,203.2,203.19,13.9502667]
[1739201486802,251.98049235,203.2,203.18,0.03948017]
[1739201487510,251.98049235,203.2,203.16,13.9502667]
[1739201487807,0.34832003,203.15,203.11,13.9502667]
[1739201488014,0.34832003,203.13,203.09,13.9502667]
[1739201488304,0.34832003,203.1,203.06,0.03]
[1739201488480,0.34832003,203.1,203.08,20.0]
[1739201488685,0.34832003,203.08,203.06,0.03]
[1739201489102,0.34832003,203.08,203.07,20.0]
[1739201489393,0.34832003,203.12,203.07,34.32022028]
[1739201489722,0.34832003,203.12,203.11,13.9502667]
[1739201490375,6.1677,203.16,203.11,13.9502667]
[1739201490579,6.1677,203.16,203.15,13.9502667]
[1739201490804,6.1677,203.16,203.13,13.9502667]
[1739201492290,1.6583,203.19,203.15,13.9502667]
[1739201492613,250.01687233,203.2,203.18,13.9502667]
[1739201492787,250.01687233,203.2,203.19,13.9502667]
[1739201493306,231.23734161,203.2,203.19,13.9502667]
[1739201494298,231.23734161,203.2,203.18,13.9502667]
[1739201494510,231.23734161,203.2,203.19,13.9502667]
[1739201494892,222.33127872,203.2,203.19,13.9502667]
[1739201500995,222.33127872,203.2,203.19,20.0]
[1739201501193,222.33127872,203.2,203.13,13.9502667]
[1739201501531,13.9502667,203.18,203.11,13.9802667]
[1739201501700,13.9502667,203.16,203.11,13.980267]
[1739201501905,0.92305904,203.15,203.11,0.03]
[1739201502621,13.9502667,203.16,203.11,0.03]
[1739201503126,14.8733478,203.18,203.11,13.9802667]
[1739201503490,13.9502667,203.15,203.11,0.03]
[1739201503925,0.92317415,203.14,203.11,0.03]
[1739201504796,0.92312793,203.15,203.11,0.03]
[1739201505303,14.87339463,203.15,203.11,0.03]
[1739201505706,13.9502667,203.13,203.11,0.03]
[1739201506106,14.87346307,203.12,203.11,0.03]
[1739201506518,0.92319637,203.12,203.11,0.03]
[1739201507326,14.87348829,203.17,203.11,0.03]
[1739201507502,13.9502667,203.15,203.11,0.03]
[1739201507700,14.87341685,203.17,203.11,0.03]
[1739201508010,0.92315015,203.17,203.11,13.9802667]
[1739201508328,8.98526947,203.19,203.13,13.9502667]
[1739201508630,8.98526947,203.19,203.12,13.9502667]
[1739201510229,13.9502667,203.17,203.11,0.03]
[1739201510405,13.9502667,203.15,203.11,0.03]
[1739201510703,0.92315332,203.14,203.11,0.03]
[1739201511106,13.9502667,203.12,203.11,0.03]
[1739201511307,13.9502667,203.13,203.11,0.03]
[1739201511529,0.92322228,203.12,203.11,0.03]
[1739201512429,0.92322258,203.13,203.11,0.03]
[1739201512932,13.9502667,203.16,203.11,0.03]
[1739201513228,0.92322298,203.17,203.11,13.9802667]
[1739201513442,8.98523204,203.19,203.12,13.9502667]
[1739201514439,13.9502667,203.18,203.11,0.03]
[1739201514745,0.92306585,203.17,203.12,13.9502667]
[1739201515434,0.92306585,203.17,203.11,13.9802667]
[1739201515744,8.98533864,203.19,203.12,13.9502667]
[1739201516306,22.93560534,203.19,203.12,13.9502667]
[1739201516834,13.9502667,203.18,203.11,0.03]
[1739201517031,0.92309382,203.17,203.11,0.03]
[1739201517228,13.9502667,203.16,203.11,0.03]
[1739201517535,0.92320101,203.15,203.11,0.03]
[1739201519112,13.9502667,203.13,203.11,0.03]
[1739201519329,0.92328282,203.12,203.11,0.03]
[1739201520932,14.87354952,203.12,203.11,0.03]
[1739201522940,0.92328282,203.12,203.11,0.03]
[1739201523125,13.9502667,203.16,203.11,0.03]
[1739201523445,0.92313985,203.18,203.13,13.9502667]
[1739201523630,8.98525811,203.19,203.14,13.9502667]
[1739201524121,8.98525811,203.19,203.13,13.9502667]
[1739201524325,13.9502667,203.16,203.11,0.03]
[1739201524651,14.87336558,203.15,203.11,0.03]
[1739201524939,13.9502667,203.13,203.11,0.03]
[1739201525115,0.92321356,203.12,203.11,0.03]
[1739201525316,14.87348026,203.12,203.11,0.03]
[1739201526045,28.28532879,203.12,203.11,0.03]
[1739201526246,13.9502667,203.07,203.06,0.03]
[1739201526748,13.9502667,203.08,203.06,0.03]
[1739201527039,0.92339941,203.12,203.06,13.9802667]
[1739201527415,13.9502667,203.11,203.06,0.03]
[1739201527610,0.92334121,203.1,203.06,0.03]
[1739201528047,14.87360791,203.1,203.06,0.03]
[1739201529423,13.9502667,203.08,203.06,0.03]
[1739201529625,0.92349587,203.07,203.06,0.03]
[1739201530117,14.87374377,203.13,203.06,0.03]
[1739201530328,0.92347707,203.13,203.08,13.9502667]
[1739201530518,0.92316813,203.14,203.08,13.9502667]
[1739201530719,13.9502667,203.12,203.06,0.03]
[1739201531046,0.92316813,203.14,203.06,0.03]
[1739201531047,13.9502667,203.14,203.06,13.9802667]
[1739201531247,0.9231918,203.13,203.08,13.9502667]
[1739201531662,0.92322743,203.15,203.09,13.9502667]
[1739201531950,0.92304415,203.16,203.11,13.9502667]
[1739201532151,0.92304415,203.16,203.1,13.9502667]
[1739201532350,0.92304415,203.16,203.11,13.9502667]
[1739201532554,8.98526833,203.19,203.14,13.9502667]
[1739201533744,8.98526833,203.19,203.12,13.9502667]
[1739201534151,222.33127872,203.2,203.14,13.9502667]
[1739201534340,222.33127872,203.2,203.15,13.9502667]
[1739201534543,222.33127872,203.2,203.09,20.0]
[1739201534544,1.0,203.18,203.13,20.0]
[1739201534855,1.063,203.2,203.17,13.9502667]
[1739201535057,1.063,203.2,203.18,13.9502667]
[1739201535235,1.063,203.2,203.16,13.9502667]
[1739201535442,1.0,203.17,203.06,25.20996257]
[1739201535637,1.0,203.19,203.08,1.0]
[1739201535957,1.0,203.19,203.17,13.9502667]
[1739201536441,1.0,203.19,203.18,13.9502667]
[1739201536958,1.0,203.19,203.17,13.9502667]
[1739201537147,1.0,203.19,203.15,13.9502667]
[1739201537349,1.0,203.17,203.15,13.9502667]
[1739201537940,1.0,203.14,203.13,13.9502667]
[1739201538143,1.0,203.14,203.11,13.9502667]
[1739201538452,1.0,203.12,203.11,13.9502667]
[1739201539160,1.0,203.1,203.09,13.9502667]
[1739201539364,1.0,203.1,203.08,13.9502667]
[1739201539544,1.0,203.1,203.06,13.9802667]
[1739201540246,1.0,203.07,203.06,13.9802667]
[1739201540656,1.0,203.07,203.06,0.03]
[1739201540840,1.0,203.07,203.06,13.9802667]
[1739201542165,1.0,203.07,203.06,0.03]
[1739201542961,1.0,203.07,203.06,13.9802667]
[1739201543271,13.41184853,203.13,203.11,13.9502667]
[1739201543443,6.6241,203.19,203.12,13.9502667]
[1739201543644,7.54705376,203.19,203.14,13.9502667]
[1739201543848,13.41184853,203.18,203.13,13.9502667]
[1739201544038,0.92298215,203.17,203.13,13.9502667]
[1739201544354,14.33485075,203.18,203.12,13.9502667]
[1739201545162,14.33485075,203.18,203.13,13.9502667]
[1739201545660,13.41184853,203.18,203.13,13.9502667]
[1739201547173,6.6241,203.19,203.17,13.9502667]
[1739201547467,0.063,203.2,203.18,13.9502667]
[1739201547648,0.063,203.2,203.19,13.9502667]
[1739201549971,0.063,203.2,203.18,13.9502667]
[1739201550763,0.063,203.2,203.16,13.9502667]
[1739201550967,13.9502667,203.18,203.11,13.9502667]
[1739201551154,14.33485626,203.17,203.11,13.9502667]
[1739201551356,14.33485626,203.17,203.06,0.03]
[1739201551546,13.41184853,203.13,203.06,0.03]
[1739201551742,14.87353198,203.16,203.09,13.9502667]
[1739201552044,0.98610409,203.2,203.13,13.9502667]
[1739201552267,0.98610409,203.2,203.14,13.9502667]
[1739201552566,27.36211523,203.19,203.12,13.9502667]
[1739201552878,0.92300214,203.18,203.11,13.9502667]
[1739201555281,13.41184853,203.17,203.11,13.9502667]
[1739201555572,13.41184853,203.15,203.09,13.9502667]
[1739201555777,13.9502667,203.19,203.11,13.9502667]
[1739201555973,0.063,203.2,203.15,13.9502667]
[1739201556572,0.063,203.2,203.17,13.9502667]
[1739201556770,0.063,203.2,203.18,13.9502667]
[1739201557075,0.063,203.2,203.17,13.9502667]
[1739201557449,0.063,203.2,203.19,13.9502667]
[1739201558179,0.063,203.2,203.17,13.9502667]
[1739201560253,27.42511523,203.2,203.12,13.9502667]
[1739201561387,0.92287952,203.19,203.12,13.9502667]
[1739201561676,27.36211523,203.18,203.09,13.9802667]
[1739201561872,27.36211523,203.16,203.09,0.03]
[1739201562072,13.9502667,203.14,203.09,0.03]
[1739201562385,0.92317844,203.13,203.09,0.03]
[1739201562680,0.92317286,203.13,203.09,0.03]
[1739201562882,13.9502667,203.14,203.09,0.03]
[1739201563460,13.9502667,203.18,203.09,13.9802667]
[1739201563667,14.87330148,203.17,203.1,13.9502667]
[1739201564277,13.41184853,203.16,203.1,13.9502667]
[1739201564480,0.9231014,203.15,203.1,13.9502667]
[1739201564680,14.8733681,203.15,203.09,0.03]
[1739201564868,21.8138667,203.13,203.09,0.03]
[1739201565057,0.92325527,203.12,203.09,0.03]
[1739201565265,13.41184853,203.1,203.09,0.03]
[1739201565474,14.33519627,203.1,203.09,0.03]
[1739201565781,21.8138667,203.13,203.09,0.03]
[1739201566577,7.8636,203.13,203.09,0.03]
[1739201566776,7.8636,203.13,203.09,13.9802667]
[1739201566980,7.8636,203.18,203.11,13.9502667]
[1739201567179,7.8636,203.18,203.14,13.9502667]
[1739201567385,7.8636,203.18,203.16,13.9502667]
[1739201567560,0.063,203.2,203.17,13.9502667]
[1739201568266,0.063,203.2,203.19,13.9502667]
[1739201568691,0.063,203.2,203.18,13.9502667]
[1739201568869,0.063,203.2,203.17,13.9502667]
[1739201569063,0.063,203.2,203.16,13.9502667]
[1739201570684,0.063,203.2,203.19,13.9502667]
[1739201570993,0.063,203.2,203.18,13.9502667]
[1739201571384,0.063,203.2,203.19,13.9502667]
[1739201571864,0.063,203.2,203.18,13.9502667]
[1739201572071,0.063,203.2,203.16,13.9502667]
[1739201573871,0.063,203.2,203.17,13.9502667]
[1739201574190,0.063,203.2,203.15,13.9502667]
[1739201576278,0.063,203.2,203.13,13.9502667]
[1739201576495,14.93608187,203.2,203.13,13.9502667]
[1739201576980,13.9502667,203.19,203.11,13.9502667]
[1739201577372,13.9502667,203.18,203.11,13.9502667]
[1739201577572,13.9502667,203.16,203.09,15.21936138]
[1739201577884,16.37487692,203.17,203.09,15.21936138]
[1739201578083,2.42461022,203.17,203.1,13.9502667]
[1739201578291,16.37487692,203.17,203.09,15.21936138]
[1739201578595,16.37487692,203.17,203.1,13.9502667]
[1739201578766,2.42461022,203.17,203.1,13.9502667]
[1739201579595,16.37487692,203.17,203.1,13.9502667]
[1739201581180,1.5017,203.17,203.13,13.9502667]
[1739201581504,1.5017,203.17,203.14,13.9502667]
[1739201581805,1.5017,203.17,203.15,13.9502667]
[1739201581973,0.063,203.2,203.16,13.9502667]
[1739201583199,13.41184853,203.18,203.11,13.9502667]
[1739201583377,0.063,203.2,203.1,13.9502667]
[1739201583378,14.87332,203.17,203.1,13.9502667]
[1739201584003,0.9230533,203.17,203.11,13.9502667]
[1739201584491,0.9860533,203.17,203.11,13.9502667]
[1739201586098,0.063,203.17,203.12,13.9502667]
[1739201586399,0.063,203.17,203.16,13.9502667]
[1739201586596,0.063,203.17,203.15,13.9502667]
[1739201586778,0.063,203.17,203.12,13.9502667]
[1739201587285,0.063,203.17,203.16,13.9502667]
[1739201591319,14.0132667,203.17,203.16,1.20161166]
[1739201591481,27.42511523,203.17,203.16,1.20161166]
[1739201591682,0.063,203.17,203.11,13.9502667]
[1739201593410,0.063,203.17,203.09,1.2381204]
[1739201593411,0.063,203.17,203.15,13.9502667]
[1739201594098,0.063,203.17,203.13,13.9502667]
[1739201594899,0.063,203.17,203.11,13.9502667]
[1739201595281,14.0132667,203.17,203.09,35.1883871]
[1739201595513,0.92309566,203.16,203.09,13.9802667]
[1739201597209,13.41184853,203.14,203.09,0.03]
[1739201597389,1.6592,203.12,203.09,0.03]
[1739201598016,0.92323859,203.11,203.09,0.03]
[1739201598324,13.41184853,203.1,203.06,0.03]
[1739201598488,13.9502667,203.07,203.06,0.03]
[1739201598693,27.36211523,203.07,203.06,0.03]
[1739201598993,13.41184853,203.06,203.05,0.03]
[1739201599307,28.28570653,203.06,202.99,0.03]
[1739201599509,13.9502667,203.04,202.99,0.03]
[1739201599708,0.9236558,203.03,202.99,0.03]
[1739201600006,13.41184853,203.0,202.99,0.03]
[1739201600188,13.41184853,203.06,202.99,0.03]
[1739201600189,6.3707,203.09,202.99,13.9802667]
[1739201600389,0.92321951,203.08,203.03,13.9502667]
[1739201601605,7.2941753,203.09,203.03,13.9502667]
[1739201602602,13.41184853,203.08,203.02,13.9502667]
[1739201602806,0.92349933,203.07,203.02,13.9502667]
[1739201603616,0.92349933,203.07,203.04,13.9502667]
[1739201603914,6.3707,203.09,203.06,13.9502667]
[1739201604092,2.58252934,203.16,203.08,13.9502667]
[1739201604293,2.58252934,203.16,203.12,13.9502667]
[1739201604492,2.58252934,203.16,203.01,13.9502667]
[1739201604493,13.9502667,203.13,203.01,13.9502667]
[1739201604708,0.92344204,203.12,203.01,13.9502667]
[1739201604924,14.87370874,203.12,203.03,13.9502667]
[1739201605097,14.87370874,203.12,203.05,13.9502667]
[1739201606321,13.9502667,203.07,202.99,13.9802667]
[1739201606495,0.92362144,203.06,202.99,13.9802667]
[1739201606819,15.6094667,203.05,202.99,13.9802667]
[1739201607025,6.3707,203.03,202.99,13.9802667]
[1739201608105,6.3707,203.03,203.01,13.9502667]
[1739201608309,6.3707,203.03,202.99,13.9802667]
[1739201608518,0.92343354,203.02,202.99,0.03]
[1739201608697,13.41184853,203.01,202.99,0.03]
[1739201608897,0.92382801,203.0,202.99,0.03]
[1739201609419,14.33567654,203.0,202.99,0.03]
[1739201610818,6.3707,203.03,202.99,13.9802667]
[1739201611032,6.3707,203.03,203.01,13.9502667]
[1739201611810,6.3707,203.03,203.0,13.9502667]
[1739201612022,0.92359447,203.02,202.99,0.03]
[1739201612206,13.41184853,203.01,202.99,0.03]
[1739201612407,14.33568627,203.0,202.99,0.03]
[1739201612811,28.28595297,203.0,202.99,0.03]
[1739201613000,13.41184853,202.99,202.98,0.03]
[1739201613198,27.36211523,202.99,202.98,0.03]
[1739201613429,14.33579222,202.99,202.98,0.03]
[1739201613601,13.41184853,202.97,202.95,0.03]
[1739201613805,34.89738468,202.96,202.95,0.03]
[1739201614203,13.41184853,202.95,202.88,0.03]
[1739201614421,13.41184853,202.9,202.88,0.03]
[1739201614612,0.9243008,202.89,202.88,0.03]
[1739201615317,14.33614933,202.89,202.88,0.03]
[1739201615717,13.9502667,202.92,202.88,0.03]
[1739201615923,0.92443306,202.94,202.88,0.03]
[1739201615924,0.92421762,202.94,202.88,13.9802667]
[1739201616122,0.92421762,202.94,202.9,13.9502667]
[1739201616304,0.92421762,202.94,202.89,13.9502667]
[1739201616513,13.41184853,202.93,202.88,13.9802667]
[1739201616705,0.92421283,202.92,202.88,13.9802667]
[1739201617117,6.6111,202.96,202.91,13.9502667]
[1739201617349,6.6111,202.96,202.92,13.9502667]
[1739201617630,6.6111,202.96,202.95,13.9502667]
[1739201617933,1.6323,202.98,202.95,13.9502667]
[1739201618100,1.6323,202.98,202.96,13.9502667]
[1739201618304,1.6323,202.98,202.95,13.9502667]
[1739201618504,1.6323,202.98,202.94,13.9502667]
[1739201618723,1.6323,202.98,202.96,13.9502667]
[1739201618920,1.6323,202.98,202.95,13.9502667]
[1739201619114,1.6323,202.98,202.94,13.9502667]
[1739201619315,0.92386041,202.97,202.93,13.9502667]
[1739201619633,14.87412711,202.97,202.9,13.9502667]
[1739201619807,27.36211523,202.96,202.89,13.9502667]
[1739201620139,20.5613667,202.9,202.88,0.03]
[1739201620438,28.28649038,202.89,202.88,0.03]
[1739201621007,14.33622368,202.89,202.88,0.03]
[1739201621315,20.5613667,202.9,202.88,0.03]
[1739201621316,6.6111,202.9,202.88,13.9802667]
[1739201621708,0.92416997,202.94,202.89,13.9502667]
[1739201621909,0.92416997,202.94,202.91,13.9502667]
[1739201622906,14.3360185,202.94,202.89,13.9502667]
[1739201623111,13.41184853,202.93,202.88,13.9802667]
[1739201623312,0.92423702,202.92,202.88,13.9802667]
[1739201623515,0.92423702,202.92,202.88,0.03]
[1739201623949,13.41184853,202.91,202.88,0.03]
[1739201624116,6.6111,202.95,202.88,0.03]
[1739201624117,0.92427554,202.9,202.88,13.9802667]
[1739201624317,0.92426912,202.94,202.89,13.9502667]
[1739201624529,0.92426912,202.94,202.91,13.9502667]
[1739201625416,0.92426912,202.94,202.88,13.9802667]
[1739201625618,13.41184853,202.93,202.88,13.9802667]
[1739201625814,0.92418242,202.92,202.88,0.03]
[1739201626032,0.92418242,202.92,202.88,13.9802667]
[1739201626732,0.92419575,202.94,202.9,13.9502667]
[1739201627238,20.0,202.92,202.9,13.9502667]
[1739201627544,28.21184853,202.89,202.84,0.03]
[1739201627715,27.36211523,202.85,202.84,0.03]
[1739201628323,28.28684996,202.85,202.84,0.03]
[1739201628539,13.41184853,202.84,202.75,13.9502667]
[1739201628740,13.41184853,202.81,202.75,13.9502667]
[1739201628945,0.92473518,202.8,202.75,13.9502667]
[1739201629328,14.87498768,202.86,202.79,13.9502667]
[1739201629538,13.41184853,202.85,202.79,13.9502667]
[1739201629737,27.36211523,202.83,202.75,13.9502667]
[1739201629930,13.41184853,202.81,202.75,13.9502667]
[1739201630243,0.92473924,202.8,202.75,13.9502667]
[1739201630835,13.41184853,202.77,202.71,13.9802667]
[1739201631039,0.92491883,202.76,202.71,13.9802667]
[1739201631549,0.92491883,202.76,202.71,0.03]
[1739201632044,0.92494455,202.77,202.73,13.9502667]
[1739201632419,0.92494455,202.77,202.72,13.9502667]
[1739201632615,7.6229,202.78,202.74,13.9502667]
[1739201632837,7.6229,202.78,202.76,13.9502667]
[1739201634428,1.0,202.87,202.77,13.9502667]
[1739201634429,8.54765768,202.83,202.77,13.9502667]
[1739201634622,8.54765768,202.83,202.8,13.9502667]
[1739201635131,8.54765768,202.83,202.81,13.9502667]
[1739201635335,7.6229,202.83,202.82,13.9502667]
[1739201635735,7.6229,202.88,202.82,13.9502667]
[1739201636044,0.92435267,202.87,202.83,13.9502667]
[1739201636347,7.6229,202.88,202.85,13.9502667]
[1739201636545,7.6229,202.88,202.87,13.9502667]
[1739201636728,0.92426021,202.92,202.87,13.9502667]
[1739201636923,6.0556,202.93,202.91,13.9502667]
[1739201637236,6.0556,202.93,202.92,13.9502667]
[1739201637630,6.0556,202.93,202.9,13.9502667]
[1739201638031,6.0556,202.93,202.89,13.9502667]
[1739201638347,0.92407506,202.92,202.88,13.9502667]
[1739201638556,6.0556,202.93,202.9,13.9502667]
[1739201639344,6.0556,202.93,202.89,13.9502667]
[1739201639655,27.36211523,202.91,202.84,13.9502667]
[1739201639954,13.9502667,202.88,202.8,13.9502667]
[1739201640156,0.92447393,202.87,202.8,13.9502667]
[1739201640330,13.41184853,202.84,202.78,13.9502667]
[1739201640527,14.87491387,202.83,202.75,13.9502667]
[1739201640729,6.4515,202.81,202.75,13.9502667]
[1739201640922,0.9247114,202.8,202.75,13.9502667]
[1739201641544,14.8749781,202.8,202.73,13.9502667]
[1739201641738,36.20061074,202.79,202.71,22.81876221]
[1739201641936,13.41184853,202.77,202.71,22.81876221]
[1739201642138,0.92494971,202.76,202.71,22.81876221]
[1739201642639,13.41184853,202.75,202.71,22.81876221]
[1739201642847,0.92499488,202.74,202.71,22.81876221]
[1739201643043,0.92486248,202.79,202.73,22.78876221]
[1739201643239,0.92486248,202.79,202.75,22.78876221]
[1739201643437,13.41184853,202.78,202.73,22.78876221]
[1739201643655,22.78876221,202.74,202.71,0.03]
[1739201643865,37.12578964,202.73,202.71,0.03]
[1739201645142,0.9251789,202.73,202.71,0.03]
[1739201645342,0.92500081,202.72,202.71,0.03]
[1739201645564,13.41184853,202.71,202.62,22.78876221]
[1739201645750,13.41184853,202.68,202.62,22.78876221]
[1739201646061,0.92536655,202.67,202.62,22.78876221]
[1739201646761,0.9253546,202.71,202.66,22.78876221]
[1739201646939,0.92520907,202.7,202.65,22.78876221]
[1739201647266,6.4515,202.77,202.69,22.78876221]
[1739201647442,0.92490147,202.76,202.73,22.78876221]
[1739201647760,0.92490147,202.76,202.69,22.78876221]
[1739201647941,6.4515,202.77,202.74,22.78876221]
[1739201648148,0.92493073,202.76,202.74,22.78876221]
[1739201648336,6.4515,202.77,202.65,21.0]
[1739201648537,6.4515,202.77,202.76,22.78876221]
[1739201648737,6.4515,202.83,202.76,22.78876221]
[1739201648946,0.92463032,202.82,202.79,22.78876221]
[1739201649464,0.92463032,202.82,202.78,22.78876221]
[1739201650940,13.41184853,202.81,202.78,22.78876221]
[1739201651147,13.41184853,202.79,202.76,22.78876221]
[1739201651445,13.41184853,202.77,202.72,22.78876221]
[1739201651646,0.9249436,202.79,202.76,22.78876221]
[1739201652168,13.41184853,202.81,202.76,22.78876221]
[1739201652370,0.924737,202.82,202.66,6.50895933]
[1739201652371,0.92474542,202.82,202.78,22.78876221]
[1739201652668,0.92457508,202.81,202.78,22.78876221]
[1739201653066,0.92462782,202.82,202.78,22.78876221]
[1739201653266,6.4515,202.83,202.8,22.78876221]
[1739201653565,6.4515,202.83,202.82,22.78876221]
[1739201653865,0.92447178,202.87,202.82,22.78876221]
[1739201654375,0.063,202.88,202.86,22.78876221]
[1739201654858,0.063,202.88,202.87,22.78876221]
[1739201658248,0.063,202.88,202.86,22.78876221]
[1739201658450,0.063,202.88,202.87,22.78876221]
[1739201659053,0.063,202.88,202.83,22.78876221]
[1739201659258,0.98739589,202.88,202.82,22.78876221]
[1739201659457,0.98739589,202.88,202.84,22.78876221]
[1739201659648,0.063,202.88,202.86,22.78876221]
[1739201659847,0.063,202.88,202.87,22.78876221]
[1739201661150,0.063,202.88,202.87,23.78876221]
[1739201661577,0.063,202.94,202.9,21.0]
[1739201661770,0.063,202.94,202.93,22.78876221]
[1739201662569,0.063,202.94,202.93,45.57752442]
[1739201664899,0.063,202.94,202.93,22.78876221]
[1739201666953,0.063,202.94,202.84,22.78876221]
[1739201667163,0.063,202.94,202.89,22.78876221]
[1739201667976,0.063,202.94,202.91,22.78876221]
[1739201668185,0.063,202.94,202.93,22.78876221]
[1739201668669,0.063,202.94,202.93,45.57752442]
[1739201669287,0.063,203.0,202.96,20.0]
[1739201669461,0.063,203.0,202.99,22.78876221]
[1739201670875,0.063,203.0,202.99,23.78876221]
[1739201671190,0.063,203.0,202.99,25.00235631]
[1739201671576,6.2607,203.1,203.02,20.0]
[1739201671772,6.2607,203.1,203.08,22.78876221]